bitfinex/quotes_BTCUSD_20251231
["timestamp","ask_amount","ask_price","bid_price","bid_amount"]
[1767224400013,0.01070482,87732.0,87721.0,0.01144]
[1767224400161,0.01070482,87731.0,87721.0,0.01144]
[1767224400362,0.01070482,87730.0,87721.0,0.01144]
[1767224400563,0.01070482,87729.0,87721.0,0.01144]
[1767224400783,0.01144,87735.0,87721.0,0.01144]
[1767224400990,0.01070489,87734.0,87720.0,0.04967073]
[1767224401190,0.01070489,87733.0,87720.0,0.06610011]
[1767224401428,0.01070489,87732.0,87720.0,0.06610011]
[1767224401735,0.04567729,87735.0,87720.0,0.06610011]
[1767224401736,0.01070489,87731.0,87720.0,0.04967073]
[1767224402052,0.01070489,87730.0,87720.0,0.04967073]
[1767224402240,0.01070489,87729.0,87720.0,0.04967073]
[1767224402391,0.01144,87735.0,87720.0,0.04967073]
[1767224402593,0.01070676,87734.0,87720.0,0.04967073]
[1767224402791,0.01070676,87733.0,87720.0,0.04967073]
[1767224403051,0.01070676,87732.0,87720.0,0.04967073]
[1767224403228,0.01070676,87731.0,87720.0,0.04967073]
[1767224403431,0.01144,87735.0,87720.0,0.04967073]
[1767224403432,0.01070676,87730.0,87720.0,0.04967073]
[1767224403747,0.01070706,87729.0,87720.0,0.04967073]
[1767224403896,0.01144,87735.0,87720.0,0.04967073]
[1767224404101,0.01070707,87734.0,87720.0,0.04967073]
[1767224404337,0.01070707,87733.0,87720.0,0.04967073]
[1767224404519,0.01070707,87732.0,87720.0,0.04967073]
[1767224404728,0.01070707,87731.0,87720.0,0.04967073]
[1767224404936,0.01787676,87744.0,87721.0,0.04602439]
[1767224404937,0.01015807,87730.0,87721.0,0.04602439]
[1767224405139,0.01144,87740.0,87721.0,0.04602439]
[1767224405140,0.0342349,87739.0,87721.0,0.04602439]
[1767224405540,0.01144,87740.0,87721.0,0.04602439]
[1767224405742,0.01787645,87737.0,87721.0,0.04602439]
[1767224405951,0.01787645,87737.0,87722.0,0.11451085]
[1767224406805,0.01787645,87737.0,87723.0,0.04602439]
[1767224407985,0.0342349,87739.0,87723.0,0.04602439]
[1767224411332,0.01787645,87737.0,87723.0,0.04602439]
[1767224412080,0.05211135,87737.0,87728.0,0.04602439]
[1767224412299,0.05211135,87737.0,87727.0,0.51576562]
[1767224412300,0.0115878,87747.0,87730.0,0.04602439]
[1767224412496,0.03423268,87745.0,87730.0,0.04602439]
[1767224412709,0.00053864,87753.0,87732.0,0.04602439]
[1767224412917,0.00053864,87753.0,87735.0,0.04602439]
[1767224413123,0.03476839,87753.0,87737.0,0.04602439]
[1767224413328,0.03476839,87753.0,87738.0,0.01144]
[1767224414210,0.03476839,87753.0,87738.0,0.05746439]
[1767224415771,0.01787261,87752.0,87738.0,0.05746439]
[1767224415974,0.01787261,87752.0,87740.0,0.04602439]
[1767224419227,0.01787261,87752.0,87741.0,0.04602439]
[1767224419371,0.00053864,87753.0,87741.0,0.04602439]
[1767224426913,0.03476839,87753.0,87741.0,0.04602439]
[1767224428080,0.00053864,87753.0,87741.0,0.04602439]
[1767224428282,0.00053864,87753.0,87741.0,0.05291083]
[1767224435008,0.00053864,87753.0,87741.0,0.07093082]
[1767224435421,0.00053864,87753.0,87742.0,0.04577342]
[1767224440141,0.045439,87761.0,87742.0,0.04577342]
[1767224440142,0.0114,87766.0,87742.0,0.04577342]
[1767224440309,0.01801999,87763.0,87744.0,0.04577342]
[1767224440510,0.01801999,87763.0,87746.0,0.04577342]
[1767224441057,0.01801999,87763.0,87748.0,0.04577342]
[1767224441262,0.01068398,87762.0,87748.0,0.04522442]
[1767224441446,0.04975541,87761.0,87742.0,0.06144877]
[1767224441759,0.01801999,87763.0,87746.0,0.0114]
[1767224441760,0.04975541,87759.0,87746.0,0.0114]
[1767224442168,0.04975541,87759.0,87743.0,0.03422674]
[1767224442169,0.04975541,87757.0,87743.0,0.03422674]
[1767224442369,0.04930717,87757.0,87746.0,0.0114]
[1767224443271,0.04930717,87757.0,87746.0,0.01119639]
[1767224451662,0.04930717,87757.0,87742.0,0.09567551]
[1767224451813,0.04930717,87757.0,87746.0,0.0114]
[1767224455996,0.04930717,87757.0,87745.0,0.0114]
[1767224467473,0.04722809,87755.0,87742.0,0.0597282]
[1767224467652,0.04722809,87753.0,87743.0,0.0114]
[1767224468440,0.03422983,87752.0,87743.0,0.0114]
[1767224470840,0.08145792,87752.0,87743.0,0.0114]
[1767224471045,0.03422983,87752.0,87743.0,0.0114]
[1767224471263,0.04722809,87751.0,87743.0,0.0114]
[1767224475440,0.04722809,87751.0,87737.0,0.01144]
[1767224475919,0.04722809,87751.0,87735.0,0.04788072]
[1767224476140,0.04722809,87751.0,87737.0,0.01144]
[1767224477371,0.04722809,87751.0,87737.0,0.05932072]
[1767224483918,0.04731114,87757.0,87737.0,0.05932072]
[1767224484088,0.05799568,87756.0,87737.0,0.05932072]
[1767224484290,0.0114,87758.0,87737.0,0.05932072]
[1767224484291,0.05799568,87755.0,87737.0,0.05932072]
[1767224484596,0.04731114,87755.0,87737.0,0.05932072]
[1767224484818,0.01068432,87754.0,87737.0,0.05932072]
[1767224484998,0.04731114,87755.0,87737.0,0.05932072]
[1767224485213,0.01068494,87754.0,87737.0,0.05932072]
[1767224485425,0.04731114,87755.0,87737.0,0.05932072]
[1767224485622,0.01068494,87754.0,87737.0,0.05932072]
[1767224485826,0.04731114,87755.0,87737.0,0.05932072]
[1767224486162,0.01068494,87754.0,87737.0,0.05932072]
[1767224486367,0.04731114,87755.0,87737.0,0.05932072]
[1767224486510,0.01068507,87754.0,87737.0,0.05932072]
[1767224486716,0.04731114,87755.0,87737.0,0.05932072]
[1767224486917,0.01068518,87754.0,87737.0,0.05932072]
[1767224487122,0.04731114,87755.0,87737.0,0.05932072]
[1767224487454,0.01068547,87754.0,87737.0,0.05932072]
[1767224487615,0.04731114,87755.0,87737.0,0.05932072]
[1767224487914,0.01068547,87754.0,87737.0,0.05932072]
[1767224488208,0.04731114,87755.0,87737.0,0.05932072]
[1767224495037,0.01068806,87754.0,87737.0,0.05932072]
[1767224495254,0.04731114,87755.0,87737.0,0.05932072]
[1767224495451,0.01068908,87754.0,87737.0,0.05932072]
[1767224495655,0.04731114,87755.0,87737.0,0.05932072]
[1767224495833,0.01068908,87754.0,87737.0,0.05932072]
[1767224496036,0.04731114,87755.0,87737.0,0.05932072]
[1767224496244,0.01068988,87754.0,87737.0,0.05932072]
[1767224496533,0.04731114,87755.0,87737.0,0.05932072]
[1767224496758,0.01068981,87754.0,87737.0,0.05932072]
[1767224497059,0.01068981,87753.0,87737.0,0.05932072]
[1767224497219,0.01068981,87752.0,87737.0,0.05932072]
[1767224497432,0.04731114,87755.0,87737.0,0.05932072]
[1767224497626,0.01069083,87754.0,87737.0,0.05932072]
[1767224497824,0.01069083,87753.0,87737.0,0.05932072]
[1767224498026,0.01069083,87752.0,87737.0,0.05932072]
[1767224498224,0.04731114,87755.0,87737.0,0.05932072]
[1767224498542,0.01069091,87754.0,87737.0,0.05932072]
[1767224498867,0.01069091,87753.0,87737.0,0.05932072]
[1767224499061,0.01069091,87752.0,87737.0,0.05932072]
[1767224499225,0.04731114,87755.0,87737.0,0.05932072]
[1767224499427,0.01069099,87754.0,87737.0,0.05932072]
[1767224499609,0.01069099,87753.0,87737.0,0.05932072]
[1767224499806,0.01069099,87752.0,87737.0,0.05932072]
[1767224500032,0.04731114,87755.0,87737.0,0.05932072]
[1767224500244,0.01069103,87754.0,87737.0,0.05932072]
[1767224500408,0.01069103,87753.0,87737.0,0.05932072]
[1767224500615,0.01069103,87752.0,87737.0,0.05932072]
[1767224500858,0.04731114,87755.0,87737.0,0.05932072]
[1767224501057,0.01069103,87754.0,87737.0,0.05932072]
[1767224501236,0.01069103,87753.0,87737.0,0.05932072]
[1767224501443,0.01069103,87752.0,87737.0,0.05932072]
[1767224501670,0.04731114,87755.0,87737.0,0.05932072]
[1767224501873,0.01069152,87754.0,87737.0,0.05932072]
[1767224502022,0.01069152,87753.0,87737.0,0.05932072]
[1767224502224,0.01069152,87752.0,87737.0,0.05932072]
[1767224502508,0.04731114,87755.0,87737.0,0.05932072]
[1767224502688,0.0106932,87754.0,87737.0,0.05932072]
[1767224502894,0.0106932,87753.0,87737.0,0.05932072]
[1767224503093,0.0106932,87752.0,87737.0,0.05932072]
[1767224503295,0.04731114,87755.0,87737.0,0.05932072]
[1767224503478,0.0106932,87754.0,87737.0,0.05932072]
[1767224503674,0.0106932,87753.0,87740.0,0.51555556]
[1767224503877,0.0114,87756.0,87741.0,0.04943176]
[1767224506299,0.0114,87756.0,87741.0,0.04169819]
[1767224507805,0.03422799,87771.0,87741.0,0.04169819]
[1767224508017,0.01144,87764.0,87743.0,0.04943176]
[1767224508209,0.02464063,87763.0,87743.0,0.04943176]
[1767224508750,0.07195177,87763.0,87743.0,0.04943176]
[1767224508928,0.04731114,87763.0,87743.0,0.04943176]
[1767224515064,0.04731114,87763.0,87742.0,0.0059085]
[1767224515065,0.04731114,87763.0,87744.0,0.06127533]
[1767224515961,0.05998924,87762.0,87744.0,0.06127533]
[1767224516126,0.01069452,87761.0,87744.0,0.06127533]
[1767224516469,0.01069452,87760.0,87744.0,0.06127533]
[1767224516665,0.01069452,87759.0,87744.0,0.06127533]
[1767224516813,0.01069452,87758.0,87744.0,0.06127533]
[1767224517162,0.01069452,87757.0,87744.0,0.06127533]
[1767224517358,0.01069452,87756.0,87744.0,0.06127533]
[1767224517610,0.01069452,87755.0,87744.0,0.06127533]
[1767224517817,0.04929472,87762.0,87744.0,0.06127533]
[1767224517973,0.01069436,87761.0,87744.0,0.06127533]
[1767224518178,0.01069436,87760.0,87744.0,0.06127533]
[1767224518375,0.01069436,87759.0,87744.0,0.06127533]
[1767224518574,0.01069436,87758.0,87744.0,0.06127533]
[1767224518900,0.01069436,87757.0,87744.0,0.06127533]
[1767224519063,0.01069436,87756.0,87744.0,0.06127533]
[1767224519264,0.01069436,87755.0,87744.0,0.06127533]
[1767224519466,0.04929472,87762.0,87744.0,0.06127533]
[1767224519692,0.0106943,87761.0,87744.0,0.06127533]
[1767224519854,0.0106943,87760.0,87744.0,0.06127533]
[1767224520051,0.0106943,87759.0,87744.0,0.06127533]
[1767224520399,0.0106943,87758.0,87744.0,0.06127533]
[1767224520602,0.04929472,87762.0,87744.0,0.06127533]
[1767224520603,0.0106943,87757.0,87744.0,0.06127533]
[1767224520778,0.0106943,87756.0,87744.0,0.06127533]
[1767224520985,0.0106943,87755.0,87744.0,0.06127533]
[1767224521186,0.04929472,87762.0,87744.0,0.06127533]
[1767224521395,0.01787171,87759.0,87744.0,0.06127533]
[1767224521565,0.01069416,87758.0,87744.0,0.06127533]
[1767224521761,0.01069416,87757.0,87744.0,0.06127533]
[1767224521962,0.01787171,87759.0,87744.0,0.06127533]
[1767224521963,0.01069416,87756.0,87744.0,0.06127533]
[1767224522254,0.01069416,87755.0,87744.0,0.06127533]
[1767224522395,0.01787171,87759.0,87744.0,0.06127533]
[1767224522606,0.01069404,87758.0,87744.0,0.06127533]
[1767224522807,0.01069404,87757.0,87744.0,0.06127533]
[1767224523003,0.01069404,87756.0,87744.0,0.06127533]
[1767224523183,0.01069404,87755.0,87744.0,0.06127533]
[1767224523387,0.01787171,87759.0,87744.0,0.06127533]
[1767224523611,0.01069417,87758.0,87744.0,0.06127533]
[1767224523811,0.01069417,87757.0,87744.0,0.06127533]
[1767224523990,0.01069417,87756.0,87744.0,0.06127533]
[1767224524192,0.01069417,87755.0,87744.0,0.06127533]
[1767224524385,0.01787171,87759.0,87744.0,0.06127533]
[1767224524596,0.01069427,87758.0,87744.0,0.06127533]
[1767224524796,0.01069427,87757.0,87744.0,0.06127533]
[1767224525026,0.01069427,87756.0,87744.0,0.06127533]
[1767224525197,0.01069427,87755.0,87744.0,0.06127533]
[1767224525397,0.01787171,87759.0,87744.0,0.06127533]
[1767224525651,0.01069424,87758.0,87744.0,0.06127533]
[1767224525835,0.01069424,87757.0,87744.0,0.06127533]
[1767224525995,0.01787171,87759.0,87744.0,0.06127533]
[1767224525996,0.01069424,87756.0,87744.0,0.06127533]
[1767224526336,0.01069424,87755.0,87744.0,0.06127533]
[1767224526482,0.01069424,87754.0,87744.0,0.06127533]
[1767224526684,0.01069424,87753.0,87744.0,0.06127533]
[1767224526907,0.01069424,87752.0,87744.0,0.06127533]
[1767224527105,0.01787171,87759.0,87744.0,0.06127533]
[1767224527387,0.01069383,87758.0,87744.0,0.06127533]
[1767224527586,0.01069383,87757.0,87744.0,0.06127533]
[1767224527784,0.01069383,87756.0,87744.0,0.06127533]
[1767224528040,0.01069383,87755.0,87744.0,0.06127533]
[1767224528234,0.01069383,87754.0,87744.0,0.06127533]
[1767224528552,0.01069383,87753.0,87744.0,0.06127533]
[1767224528738,0.01069383,87752.0,87744.0,0.06127533]
[1767224528979,0.01787171,87759.0,87744.0,0.06127533]
[1767224529098,0.01069359,87758.0,87744.0,0.06127533]
[1767224529301,0.01069359,87757.0,87744.0,0.06127533]
[1767224529501,0.01069359,87756.0,87744.0,0.06127533]
[1767224529750,0.01069359,87755.0,87744.0,0.06127533]
[1767224529963,0.01787171,87759.0,87744.0,0.06127533]
[1767224530112,0.01069396,87758.0,87744.0,0.06127533]
[1767224530317,0.01787171,87759.0,87744.0,0.06127533]
[1767224530517,0.01069365,87758.0,87744.0,0.06127533]
[1767224530717,0.01787171,87759.0,87744.0,0.06127533]
[1767224530913,0.01069365,87758.0,87744.0,0.06127533]
[1767224531104,0.02927171,87759.0,87744.0,0.06127533]
[1767224531429,0.0114,87759.0,87744.0,0.06127533]
[1767224533944,0.0114,87759.0,87745.0,0.10244904]
[1767224536934,0.0114,87759.0,87745.0,0.04983533]
[1767224549387,0.05820392,87759.0,87744.0,0.01144]
[1767224559309,0.05750228,87758.0,87744.0,0.01144]
[1767224559625,0.04680392,87758.0,87744.0,0.01144]
[1767224574354,0.05847385,87757.0,87744.0,0.01144]
[1767224574555,0.04777451,87757.0,87744.0,0.01144]
[1767224578353,0.04777451,87757.0,87744.0,0.07308147]
[1767224582884,0.01070414,87756.0,87744.0,0.07308147]
[1767224583025,0.04777451,87757.0,87744.0,0.07308147]
[1767224583223,0.0107044,87756.0,87744.0,0.07308147]
[1767224583430,0.04777451,87757.0,87744.0,0.07308147]
[1767224583669,0.01070442,87756.0,87744.0,0.07308147]
[1767224583883,0.04777451,87757.0,87744.0,0.07308147]
[1767224584041,0.01070443,87756.0,87744.0,0.07308147]
[1767224584238,0.04777451,87757.0,87744.0,0.07308147]
[1767224596149,0.0114,87759.0,87744.0,0.11892134]
[1767224596334,0.01070571,87758.0,87744.0,0.11892134]
[1767224596533,0.01070571,87757.0,87744.0,0.11892134]
[1767224596733,0.0114,87759.0,87744.0,0.11892134]
[1767224596937,0.01070571,87758.0,87744.0,0.11892134]
[1767224597144,0.01070571,87757.0,87744.0,0.11892134]
[1767224597342,0.0114,87759.0,87744.0,0.11892134]
[1767224597582,0.0107057,87758.0,87744.0,0.11892134]
[1767224597777,0.0114,87759.0,87744.0,0.11892134]
[1767224597778,0.0107057,87757.0,87744.0,0.11712596]
[1767224597986,0.0114,87759.0,87744.0,0.12901809]
[1767224598217,0.01070569,87758.0,87744.0,0.12901809]
[1767224598343,0.01070569,87757.0,87744.0,0.12901809]
[1767224598537,0.0114,87759.0,87744.0,0.12901809]
[1767224598791,0.01070568,87758.0,87744.0,0.12901809]
[1767224598989,0.01070568,87757.0,87744.0,0.12901809]
[1767224599154,0.0114,87759.0,87744.0,0.12901809]
[1767224599351,0.01070568,87758.0,87744.0,0.12901809]
[1767224599594,0.01070568,87757.0,87744.0,0.12901809]
[1767224599774,0.0114,87759.0,87744.0,0.12901809]
[1767224599975,0.01070569,87758.0,87744.0,0.12901809]
[1767224600167,0.01070569,87757.0,87744.0,0.12901809]
[1767224600373,0.0114,87759.0,87744.0,0.12901809]
[1767224600622,0.01070569,87758.0,87744.0,0.12901809]
[1767224600798,0.01070569,87757.0,87744.0,0.12901809]
[1767224601008,0.0114,87759.0,87744.0,0.12901809]
[1767224601183,0.01070569,87758.0,87744.0,0.12901809]
[1767224601385,0.01070569,87757.0,87744.0,0.11712596]
[1767224601586,0.0114,87759.0,87744.0,0.11712596]
[1767224601803,0.0107057,87758.0,87744.0,0.11712596]
[1767224602013,0.0107057,87757.0,87744.0,0.11712596]
[1767224602177,0.0114,87759.0,87744.0,0.11712596]
[1767224602379,0.01070571,87758.0,87744.0,0.11712596]
[1767224602722,0.01070571,87757.0,87744.0,0.11712596]
[1767224603026,0.0114,87759.0,87744.0,0.11712596]
[1767224603228,0.01070578,87758.0,87744.0,0.11712596]
[1767224603524,0.01070578,87757.0,87744.0,0.11712596]
[1767224603724,0.0114,87759.0,87744.0,0.11712596]
[1767224603874,0.01070586,87758.0,87744.0,0.11712596]
[1767224604072,0.01070586,87757.0,87744.0,0.11712596]
[1767224604328,0.0114,87759.0,87744.0,0.11712596]
[1767224604492,0.01070587,87758.0,87744.0,0.11712596]
[1767224604695,0.01070587,87757.0,87744.0,0.11712596]
[1767224604903,0.0114,87759.0,87744.0,0.11712596]
[1767224605082,0.01070587,87758.0,87744.0,0.11712596]
[1767224605287,0.01070587,87757.0,87744.0,0.11712596]
[1767224605515,0.0114,87759.0,87744.0,0.11712596]
[1767224605715,0.01070588,87758.0,87745.0,0.06164147]
[1767224605923,0.01070588,87757.0,87744.0,0.11712596]
[1767224606138,0.0114,87759.0,87744.0,0.11712596]
[1767224606338,0.01070589,87758.0,87745.0,0.06164147]
[1767224606544,0.01070589,87757.0,87745.0,0.06164147]
[1767224606753,0.0114,87759.0,87744.0,0.11712596]
[1767224606969,0.01070589,87758.0,87745.0,0.06164147]
[1767224607266,0.01070589,87757.0,87745.0,0.06164147]
[1767224607487,0.0114,87759.0,87745.0,0.06164147]
[1767224607672,0.01070591,87758.0,87745.0,0.06164147]
[1767224607897,0.01070591,87757.0,87745.0,0.06164147]
[1767224608102,0.0114,87759.0,87745.0,0.06164147]
[1767224608306,0.01070589,87758.0,87745.0,0.06164147]
[1767224608518,0.01070589,87757.0,87745.0,0.06164147]
[1767224608676,0.0114,87759.0,87745.0,0.06164147]
[1767224608882,0.01070589,87758.0,87745.0,0.06164147]
[1767224609102,0.01070589,87757.0,87745.0,0.06164147]
[1767224609442,0.0114,87759.0,87745.0,0.06164147]
[1767224609735,0.01070591,87758.0,87745.0,0.06164147]
[1767224609866,0.01070591,87757.0,87745.0,0.06164147]
[1767224610067,0.0114,87759.0,87745.0,0.06164147]
[1767224610290,0.01070592,87758.0,87745.0,0.06164147]
[1767224610488,0.01070592,87757.0,87745.0,0.06164147]
[1767224610690,0.06035848,87759.0,87745.0,0.06164147]
[1767224610947,0.0107059,87758.0,87745.0,0.06164147]
[1767224611124,0.0107059,87757.0,87745.0,0.06164147]
[1767224611459,0.06035848,87759.0,87745.0,0.06164147]
[1767224611625,0.01070503,87758.0,87745.0,0.06164147]
[1767224611826,0.01070503,87757.0,87745.0,0.06164147]
[1767224612028,0.06035848,87759.0,87745.0,0.06164147]
[1767224612230,0.01070503,87758.0,87745.0,0.06164147]
[1767224612592,0.01070503,87757.0,87745.0,0.06164147]
[1767224612759,0.06035848,87759.0,87745.0,0.06164147]
[1767224612963,0.01070504,87758.0,87745.0,0.06164147]
[1767224613105,0.01070504,87757.0,87745.0,0.06164147]
[1767224613465,0.06035848,87759.0,87745.0,0.06164147]
[1767224613667,0.01070513,87758.0,87745.0,0.06164147]
[1767224613885,0.01070513,87757.0,87745.0,0.06164147]
[1767224614069,0.06035848,87759.0,87745.0,0.06164147]
[1767224614251,0.01070513,87758.0,87745.0,0.06164147]
[1767224614462,0.01070513,87757.0,87745.0,0.06164147]
[1767224614671,0.06035848,87759.0,87745.0,0.06164147]
[1767224614892,0.01070513,87758.0,87745.0,0.06164147]
[1767224615108,0.01070513,87757.0,87745.0,0.06164147]
[1767224615307,0.06035848,87759.0,87745.0,0.06164147]
[1767224615606,0.01070513,87758.0,87745.0,0.06164147]
[1767224615903,0.01070513,87757.0,87745.0,0.06164147]
[1767224616105,0.06035848,87759.0,87745.0,0.06164147]
[1767224616302,0.01070515,87758.0,87745.0,0.06164147]
[1767224616502,0.06035848,87759.0,87745.0,0.06164147]
[1767224616703,0.01070509,87758.0,87745.0,0.06164147]
[1767224616902,0.01070509,87757.0,87745.0,0.06164147]
[1767224617212,0.06035848,87759.0,87745.0,0.06164147]
[1767224617409,0.01070493,87758.0,87745.0,0.06164147]
[1767224617626,0.01070493,87757.0,87745.0,0.06164147]
[1767224617823,0.06035848,87759.0,87745.0,0.06164147]
[1767224618024,0.01070492,87758.0,87745.0,0.06164147]
[1767224618251,0.01070492,87757.0,87745.0,0.06164147]
[1767224618381,0.06035848,87759.0,87745.0,0.06164147]
[1767224618588,0.01070492,87758.0,87745.0,0.06164147]
[1767224618792,0.01070492,87757.0,87745.0,0.06164147]
[1767224618995,0.06035848,87759.0,87745.0,0.06164147]
[1767224619190,0.01070492,87758.0,87745.0,0.06164147]
[1767224619543,0.01070492,87757.0,87745.0,0.06164147]
[1767224619737,0.06035848,87759.0,87745.0,0.06164147]
[1767224620031,0.01070492,87758.0,87745.0,0.06164147]
[1767224620235,0.01070492,87757.0,87745.0,0.06164147]
[1767224620440,0.06035848,87759.0,87745.0,0.06164147]
[1767224620736,0.01070489,87758.0,87745.0,0.06164147]
[1767224620939,0.01070489,87757.0,87745.0,0.06164147]
[1767224621096,0.06035848,87759.0,87745.0,0.06164147]
[1767224621302,0.01070461,87758.0,87745.0,0.06164147]
[1767224621506,0.01070461,87757.0,87745.0,0.10857575]
[1767224621707,0.06035848,87759.0,87745.0,0.10857575]
[1767224621904,0.01070457,87758.0,87745.0,0.10857575]
[1767224622106,0.01070457,87757.0,87745.0,0.10857575]
[1767224622445,0.06035848,87759.0,87745.0,0.10857575]
[1767224622585,0.01070459,87758.0,87745.0,0.10857575]
[1767224622787,0.01070459,87757.0,87745.0,0.10857575]
[1767224623011,0.06035848,87759.0,87745.0,0.10857575]
[1767224623210,0.0107046,87758.0,87745.0,0.10857575]
[1767224623464,0.0107046,87757.0,87745.0,0.10857575]
[1767224623697,0.06035848,87759.0,87745.0,0.10857575]
[1767224623905,0.01070427,87758.0,87745.0,0.10857575]
[1767224624047,0.01070427,87757.0,87745.0,0.10857575]
[1767224624248,0.06035848,87759.0,87745.0,0.10857575]
[1767224624450,0.01070411,87758.0,87745.0,0.10857575]
[1767224624649,0.01070411,87757.0,87745.0,0.10857575]
[1767224624889,0.06035848,87759.0,87745.0,0.10857575]
[1767224625091,0.01070411,87758.0,87745.0,0.10857575]
[1767224625406,0.01070411,87757.0,87745.0,0.10857575]
[1767224625555,0.06035848,87759.0,87745.0,0.10857575]
[1767224625748,0.01070399,87758.0,87745.0,0.10857575]
[1767224625990,0.01070399,87757.0,87745.0,0.10857575]
[1767224626298,0.06035848,87759.0,87745.0,0.10857575]
[1767224626597,0.0107039,87758.0,87745.0,0.10857575]
[1767224626744,0.0107039,87757.0,87745.0,0.10857575]
[1767224626947,0.06035848,87759.0,87745.0,0.10857575]
[1767224627169,0.0107039,87758.0,87745.0,0.10857575]
[1767224627372,0.06035848,87759.0,87745.0,0.10857575]
[1767224627576,0.01070381,87758.0,87745.0,0.10857575]
[1767224627775,0.06035848,87759.0,87745.0,0.10857575]
[1767224628001,0.01070382,87758.0,87745.0,0.10857575]
[1767224628235,0.01070381,87757.0,87745.0,0.10857575]
[1767224628383,0.06035848,87759.0,87745.0,0.10857575]
[1767224628740,0.01070376,87758.0,87745.0,0.10857575]
[1767224628946,0.01070376,87757.0,87745.0,0.10857575]
[1767224629236,0.06035848,87759.0,87745.0,0.10857575]
[1767224629533,0.0107037,87758.0,87745.0,0.10857575]
[1767224629732,0.0107037,87757.0,87745.0,0.10857575]
[1767224629944,0.06035848,87759.0,87745.0,0.10857575]
[1767224630273,0.01070356,87758.0,87745.0,0.10857575]
[1767224630424,0.01070356,87757.0,87745.0,0.10857575]
[1767224630642,0.06035848,87759.0,87745.0,0.10857575]
[1767224630886,0.01070354,87758.0,87745.0,0.10857575]
[1767224631087,0.01070354,87757.0,87745.0,0.10857575]
[1767224631385,0.06035848,87759.0,87745.0,0.10857575]
[1767224631585,0.01070352,87758.0,87745.0,0.10857575]
[1767224631765,0.01070352,87757.0,87745.0,0.10857575]
[1767224631942,0.06035848,87759.0,87745.0,0.10857575]
[1767224632147,0.01070331,87758.0,87745.0,0.10857575]
[1767224632367,0.06035848,87759.0,87745.0,0.10857575]
[1767224632687,0.01070057,87758.0,87745.0,0.10857575]
[1767224632845,0.06035848,87759.0,87745.0,0.10857575]
[1767224633048,0.01069863,87758.0,87745.0,0.10857575]
[1767224633282,0.06035848,87759.0,87745.0,0.10857575]
[1767224633507,0.01069858,87758.0,87745.0,0.10857575]
[1767224633709,0.06035848,87759.0,87745.0,0.10857575]
[1767224633915,0.01069856,87758.0,87745.0,0.10857575]
[1767224634075,0.06035848,87759.0,87745.0,0.10857575]
[1767224634278,0.01069856,87758.0,87745.0,0.10857575]
[1767224634477,0.06035848,87759.0,87745.0,0.10857575]
[1767224634695,0.01069854,87758.0,87745.0,0.10857575]
[1767224634865,0.06035848,87759.0,87745.0,0.10857575]
[1767224635065,0.01069854,87758.0,87745.0,0.10857575]
[1767224635320,0.06035848,87759.0,87745.0,0.06164147]
[1767224635645,0.01069854,87758.0,87745.0,0.06164147]
[1767224635802,0.06035848,87759.0,87745.0,0.06164147]
[1767224636004,0.01069854,87758.0,87745.0,0.06164147]
[1767224636186,0.06035848,87759.0,87745.0,0.06164147]
[1767224636387,0.01069854,87758.0,87745.0,0.06164147]
[1767224636587,0.06035848,87759.0,87745.0,0.06164147]
[1767224636788,0.01069857,87758.0,87745.0,0.06164147]
[1767224637011,0.06035848,87759.0,87745.0,0.06164147]
[1767224637207,0.01069857,87758.0,87745.0,0.06164147]
[1767224637405,0.06035848,87759.0,87745.0,0.06164147]
[1767224637585,0.01069857,87758.0,87745.0,0.06164147]
[1767224637787,0.06035848,87759.0,87744.0,0.00964462]
[1767224637788,0.01069857,87757.0,87744.0,0.00964462]
[1767224637990,0.01069857,87756.0,87744.0,0.00964462]
[1767224638226,0.01069857,87755.0,87744.0,0.00964462]
[1767224638442,0.06035848,87759.0,87744.0,0.00964462]
[1767224638651,0.01069662,87758.0,87744.0,0.00964462]
[1767224638827,0.01069662,87757.0,87744.0,0.00964462]
[1767224639035,0.01069662,87756.0,87744.0,0.00964462]
[1767224639233,0.01069662,87755.0,87744.0,0.00964462]
[1767224639437,0.06035848,87759.0,87744.0,0.00964462]
[1767224639656,0.01069591,87758.0,87744.0,0.00964462]
[1767224639818,0.01069591,87757.0,87744.0,0.00964462]
[1767224640023,0.01069591,87756.0,87744.0,0.00964462]
[1767224640223,0.01069591,87755.0,87744.0,0.00964462]
[1767224640431,0.06035848,87759.0,87744.0,0.00964462]
[1767224640631,0.01069375,87758.0,87744.0,0.00964462]
[1767224640832,0.01069375,87757.0,87744.0,0.00964462]
[1767224641145,0.01069375,87756.0,87744.0,0.00964462]
[1767224641461,0.01069375,87755.0,87744.0,0.00964462]
[1767224641668,0.06035848,87759.0,87744.0,0.00964462]
[1767224641873,0.01069326,87758.0,87744.0,0.00964462]
[1767224642067,0.01069326,87757.0,87744.0,0.00964462]
[1767224642268,0.01069326,87756.0,87744.0,0.00964462]
[1767224642477,0.01069326,87755.0,87744.0,0.00964462]
[1767224642678,0.06035848,87759.0,87744.0,0.00964462]
[1767224642877,0.01069279,87758.0,87744.0,0.00964462]
[1767224643082,0.01069279,87757.0,87744.0,0.00964462]
[1767224643282,0.01069279,87756.0,87744.0,0.00964462]
[1767224643497,0.01069279,87755.0,87744.0,0.00964462]
[1767224643822,0.06035848,87759.0,87744.0,0.00964462]
[1767224643973,0.01069252,87758.0,87744.0,0.00964462]
[1767224644188,0.01069252,87757.0,87744.0,0.00964462]
[1767224644526,0.01069252,87756.0,87744.0,0.00964462]
[1767224644703,0.01069252,87755.0,87744.0,0.00964462]
[1767224644887,0.06035848,87759.0,87744.0,0.00964462]
[1767224645093,0.01069217,87758.0,87744.0,0.00964462]
[1767224645435,0.01069217,87757.0,87744.0,0.00964462]
[1767224645573,0.01069217,87756.0,87744.0,0.00964462]
[1767224645773,0.06035848,87759.0,87744.0,0.00964462]
[1767224646032,0.01069193,87758.0,87744.0,0.00964462]
[1767224646386,0.01069193,87757.0,87744.0,0.00964462]
[1767224646524,0.01069193,87756.0,87744.0,0.00964462]
[1767224646722,0.06035848,87759.0,87744.0,0.00964462]
[1767224646970,0.01069168,87758.0,87744.0,0.00964462]
[1767224647288,0.01069168,87757.0,87744.0,0.00964462]
[1767224647484,0.01069168,87756.0,87744.0,0.00964462]
[1767224647640,0.06035848,87759.0,87744.0,0.00964462]
[1767224647847,0.01069146,87758.0,87744.0,0.00964462]
[1767224648054,0.01069146,87757.0,87744.0,0.00964462]
[1767224648397,0.01069146,87756.0,87744.0,0.00964462]
[1767224648594,0.06035848,87759.0,87744.0,0.00964462]
[1767224648769,0.01068983,87758.0,87744.0,0.00964462]
[1767224649090,0.01068983,87757.0,87744.0,0.00964462]
[1767224649290,0.01068983,87756.0,87744.0,0.00964462]
[1767224649500,0.06035848,87759.0,87744.0,0.00964462]
[1767224649663,0.0106879,87758.0,87744.0,0.00964462]
[1767224649856,0.06035848,87759.0,87744.0,0.00964462]
[1767224649857,0.0106879,87757.0,87744.0,0.00964462]
[1767224650081,0.0106879,87756.0,87744.0,0.00964462]
[1767224650281,0.06035848,87759.0,87744.0,0.00964462]
[1767224650480,0.01068749,87758.0,87744.0,0.00964462]
[1767224650679,0.01068749,87757.0,87744.0,0.00964462]